fUST/lending_fUST_20250608
["ID","MTS","AMOUNT","RATE_DAILY","PERIOD"]
[364942897,1749329434570,-440.0,0.00021917,2]
[364942898,1749329434580,-540.92288429,0.00021917,2]
[364942899,1749329434590,-440.0,0.00021917,2]
[364942900,1749329434600,-510.65,0.00021917,2]
[364942901,1749329434609,-1656.99,0.00021917,2]
[364942902,1749329434619,-440.0,0.00021917,2]
[364942903,1749329434629,-440.0,0.00021917,2]
[364942904,1749329434639,-295.52235899,0.00021917,2]
[364942905,1749329434649,-440.0,0.00021917,2]
[364942906,1749329434659,-153.0,0.00021945,2]
[364942907,1749329434669,-153.0,0.00021945,2]
[364942908,1749329434680,-153.0,0.00021945,2]
[364942909,1749329434690,-153.0,0.00021945,2]
[364942910,1749329434699,-207.4,0.00021967,2]
[364942911,1749329434710,-151.0,0.00022,7]
[364942912,1749329434721,-460.116472,0.00022,7]
[364942913,1749329434730,-460.116472,0.00022,7]
[364942914,1749329434740,-282.6,0.00022,7]
[364942915,1749329434751,-282.6,0.00022,7]
[364942916,1749329434760,-872.1417752,0.00022003,6]
[364942917,1749329434771,-213.01382694,0.00022005,2]
[364942918,1749329434780,-151.0,0.00022017,7]
[364942919,1749329434790,-151.61825986,0.00022044,2]
[364942920,1749329434799,-207.48916409,0.00022044,2]
[364942921,1749329434809,-151.0,0.00022044,2]
[364942922,1749329434819,-151.0,0.00022044,2]
[364942923,1749329434830,-151.0,0.00022044,2]
[364942924,1749329434841,-151.0,0.00022044,2]
[364942925,1749329434853,-151.72361605,0.00022044,2]
[364942926,1749329434866,-1573.7450714,0.0002206,2]
[364942927,1749329434876,-151.0,0.0002206,7]
[364942928,1749329434887,-151.0,0.0002206,7]
[364942929,1749329434896,-153.695634,0.0002206,7]
[364942930,1749329434906,-3000.0,0.0002207,2]
[364942931,1749329434917,-245.0,0.00022071,2]
[364942932,1749329434927,-245.0,0.00022071,2]
[364942933,1749329434937,-633.99276358,0.0002208,2]
[364942934,1749329435150,-440.0,0.00019451,2]
[364942935,1749329435163,-2366.00723642,0.0002208,2]
[364942936,1749329435174,-3000.0,0.0002209,2]
[364942937,1749329435184,-151.0,0.0002209,7]
[364942938,1749329435195,-282.6,0.0002209,7]
[364942939,1749329435204,-282.6,0.0002209,7]
[364942940,1749329435216,-605.98,0.0002209,3]
[364942941,1749329435227,-5200.782237,0.000221,2]
[364942942,1749329435237,-460.116472,0.000221,7]
[364942943,1749329435247,-460.116472,0.000221,7]
[364942944,1749329435257,-1818.70075686,0.00022132,2]
[364942945,1749329435268,-151.0,0.00022141,7]
[364942946,1749329435278,-151.0,0.00022141,7]
[364942947,1749329435289,-151.0,0.00022141,7]
[364942948,1749329435299,-151.0,0.00022141,7]
[364942949,1749329435309,-151.0,0.00022141,7]
[364942950,1749329435319,-151.0,0.00022141,7]
[364942951,1749329435329,-872.1417752,0.00022141,6]
[364942952,1749329435339,-151.0,0.00022175,7]
[364942953,1749329435350,-151.0,0.00022175,7]
[364942954,1749329435359,-218.010269,0.00022175,7]
[364942955,1749329435369,-151.0,0.00022175,7]
[364942956,1749329435379,-151.0,0.00022175,7]
[364942957,1749329435389,-201.99,0.00022181,3]
[364942958,1749329435400,-440.0,0.00022191,2]
[364942959,1749329435411,-440.0,0.00022191,2]
[364942960,1749329435421,-510.65,0.00022191,2]
[364942961,1749329435431,-1656.99,0.00022191,2]
[364942962,1749329435440,-440.0,0.00022191,2]
[364942963,1749329435450,-440.0,0.00022191,2]
[364942964,1749329435460,-293.04,0.00022191,2]
[364942965,1749329435469,-872.1417752,0.00022279,6]
[364942966,1749329435479,-151.0,0.00022328,7]
[364942967,1749329435488,-159.77840762,0.00022412,2]
[364942968,1749329435499,-872.1417752,0.00022417,7]
[364942969,1749329435509,-1948.73,0.0002243,2]
[364942970,1749329435527,-807.95,0.00022445,3]
[364942971,1749329435542,-1615.89,0.00022455,3]
[364942972,1749329435553,-370.98425976,0.00022455,2]
[364942973,1749329435564,-440.0,0.00022465,2]
[364942974,1749329435576,-440.0,0.00022465,2]
[364942975,1749329435586,-510.65,0.00022465,2]
[364942976,1749329435597,-1656.99,0.00022465,2]
[364942977,1749329435608,-440.0,0.00022465,2]
[364942978,1749329435619,-440.0,0.00022465,2]
[364942979,1749329435629,-151.0,0.00022513,7]
[364942980,1749329435640,-282.6,0.00022513,7]
[364942981,1749329435650,-282.6,0.00022513,7]
[364942982,1749329435662,-872.1417752,0.00022555,7]
[364942983,1749329435672,-403.97,0.00022563,3]
[364942984,1749329435683,-151.0,0.00022674,7]
[364942985,1749329435694,-151.0,0.00022674,7]
[364942986,1749329435704,-728.7498136,0.00022685,2]
[364942987,1749329435714,-151.0,0.00022693,7]
[364942988,1749329435724,-151.0,0.00022693,7]
[364942989,1749329435734,-872.1417752,0.00022693,7]
[364942990,1749329435746,-1818.70075686,0.00022722,2]
[364942991,1749329435758,-460.116472,0.00022739,7]
[364942992,1749329435768,-460.116472,0.00022739,7]
[364942993,1749329435778,-440.0,0.00022739,2]
[364942994,1749329435788,-440.0,0.00022739,2]
[364942995,1749329435798,-510.65,0.00022739,2]
[364942996,1749329435808,-1656.99,0.00022739,2]
[364942997,1749329435819,-251.31,0.00022739,2]
[364942998,1749329435829,-440.0,0.00022739,2]
[364942999,1749329435840,-332.0,0.00022776,2]
[364943000,1749329435851,-151.0,0.00022831,7]
[364943001,1749329435863,-151.0,0.00022831,7]
[364943002,1749329435873,-872.1417752,0.00022831,8]
[364943003,1749329435883,-350.88,0.000229,7]
[364943004,1749329435894,-151.0,0.00022921,7]
[364943005,1749329435905,-306.0,0.00022959,2]
[364943006,1749329435915,-872.1417752,0.00022969,8]
[364943007,1749329435924,-1000.0,0.00023,23]
[364943008,1749329435935,-151.0,0.00023,7]
[364943009,1749329435944,-151.0,0.00023,7]
[364943010,1749329435953,-177.0,0.00023,7]
[364943011,1749329435963,-178.823662,0.00023,7]
[364943012,1749329435976,-151.0,0.00023,7]
[364943013,1749329435986,-328.66633896,0.00023,2]
[364943014,1749329435997,-339.84823118,0.00023013,2]
[364943015,1749329436009,-440.0,0.00023013,2]
[364943016,1749329436020,-510.65,0.00023013,2]
[364943017,1749329436031,-1656.99,0.00023013,2]
[364943018,1749329436042,-440.0,0.00023013,2]
[364943019,1749329436053,-151.0,0.0002304,7]
[364943020,1749329436064,-151.0,0.0002304,7]
[364943021,1749329436074,-581.216826,0.0002304,7]
[364943022,1749329436085,-581.216826,0.0002304,7]
[364943023,1749329436096,-151.0,0.0002304,7]
[364943024,1749329436106,-151.0,0.0002304,7]
[364943025,1749329436117,-151.0,0.0002304,7]
[364943026,1749329436127,-178.036314,0.0002304,7]
[364943027,1749329436138,-178.036314,0.0002304,7]
[364943028,1749329436149,-151.0,0.0002304,7]
[364943029,1749329436160,-151.0,0.0002304,7]
[364943030,1749329436170,-151.0,0.0002304,7]
[364943031,1749329436180,-151.0,0.0002304,7]
[364943032,1749329436191,-224.0,0.0002304,7]
[364943033,1749329436201,-151.0,0.0002304,7]
[364943034,1749329436211,-151.0,0.0002304,7]
[364943035,1749329436222,-151.0,0.000231,7]
[364943036,1749329436231,-460.116472,0.000231,7]
[364943037,1749329436241,-460.116472,0.000231,7]
[364943038,1749329436251,-282.6,0.000231,7]
[364943039,1749329436262,-282.6,0.000231,7]
[364943040,1749329436272,-151.0,0.000231,7]
[364943041,1749329436282,-151.0,0.000231,7]
[364943042,1749329436293,-151.0,0.000231,7]
[364943043,1749329436302,-1260.646034,0.000231,2]
[364943044,1749329436311,-1260.646034,0.000231,2]
[364943045,1749329436321,-189.649294,0.000231,7]
[364943046,1749329436330,-189.649294,0.000231,7]
[364943047,1749329436340,-151.0,0.000231,7]
[364943048,1749329436350,-186.231388,0.000231,7]
[364943049,1749329436360,-186.231388,0.000231,7]
[364943050,1749329436370,-151.0,0.000231,7]
[364943051,1749329436392,-151.0,0.000231,7]
[364943052,1749329436408,-151.0,0.000231,7]
[364943053,1749329436421,-166.894836,0.000231,7]
[364943054,1749329436438,-166.894836,0.000231,7]
[364943055,1749329436453,-203.193541,0.000231,7]
[364943056,1749329436468,-203.193541,0.000231,7]
[364943057,1749329436479,-408.265113,0.000231,7]
[364943058,1749329436491,-408.265113,0.000231,7]
[364943059,1749329436506,-872.1417752,0.00023107,8]
[364943060,1749329436520,-500.0,0.00023139,2]
[364943061,1749329436534,-151.0,0.00023149,7]
[364943062,1749329436547,-151.0,0.00023149,7]
[364943063,1749329436561,-370.98425976,0.00023163,2]
[364943064,1749329436574,-151.0,0.00023176,7]
[364943065,1749329436588,-151.0,0.00023176,7]
[364943066,1749329436601,-221.709138,0.00023176,7]
[364943067,1749329436614,-221.709138,0.00023176,7]
[364943068,1749329436627,-500.0,0.00023178,2]
[364943069,1749329436641,-500.0,0.00023178,2]
[364943070,1749329436655,-263.4,0.00023178,2]
[364943071,1749329436668,-500.0,0.00023178,2]
[364943072,1749329436682,-501.22677704,0.00023178,2]
[364943073,1749329436695,-500.0,0.00023178,2]
[364943074,1749329436707,-151.0,0.00023204,7]
[364943075,1749329436723,-709.0,0.00023214,2]
[364943076,1749329436736,-2225.0,0.00023214,2]
[364943077,1749329436749,-241.774,0.00023214,2]
[364943078,1749329436763,-500.0,0.00023227,2]
[364943079,1749329436777,-872.1417752,0.00023245,8]
[364943080,1749329436791,-500.0,0.00023267,2]
[364943081,1749329436803,-217.58222265,0.00023287,2]
[364943082,1749329436816,-510.65,0.00023287,2]
[364943083,1749329436830,-1656.99,0.00023287,2]
[364943084,1749329436840,-440.0,0.00023287,2]
[364943085,1749329436851,-1818.70075686,0.00023311,2]
[364943086,1749329436862,-215.0738,0.00023336,2]
[364943087,1749329436874,-273.48180254,0.0002337,2]
[364943088,1749329436885,-872.1417752,0.00023383,9]
[364943089,1749329436898,-617.248901,0.00023385,3]
[364943090,1749329436910,-151.0,0.00023385,7]
[364943091,1749329436922,-150.0,0.00023419,2]
[364943092,1749329436936,-150.0,0.00023419,2]
[364943093,1749329436949,-150.0,0.00023419,2]
[364943094,1749329436961,-151.0,0.00023435,7]
[364943095,1749329436975,-151.0,0.00023435,7]
[364943096,1749329436988,-151.0,0.0002344,7]
[364943097,1749329437002,-1957.0,0.000235,2]
[364943098,1749329437015,-872.1417752,0.00023521,9]
[364943099,1749329437029,-403.98,0.00023551,3]
[364943100,1749329437040,-151.0,0.00023552,7]
[364943101,1749329437050,-151.0,0.00023552,7]
[364943102,1749329437061,-581.216826,0.00023552,7]
[364943103,1749329437071,-581.216826,0.00023552,7]
[364943104,1749329437082,-151.0,0.00023552,7]
[364943105,1749329437095,-151.0,0.00023552,7]
[364943106,1749329437108,-151.0,0.00023552,7]
[364943107,1749329437121,-178.036314,0.00023552,7]
[364943108,1749329437134,-178.036314,0.00023552,7]
[364943109,1749329437146,-151.0,0.00023552,7]
[364943110,1749329437157,-510.65,0.00023561,2]
[364943111,1749329437167,-1656.99,0.00023561,2]
[364943112,1749329437177,-440.0,0.00023561,2]
[364943113,1749329437189,-417.59,0.00023603,30]
[364943114,1749329437201,-151.0,0.00023643,7]
[364943115,1749329437212,-151.0,0.00023643,7]
[364943116,1749329437224,-1260.646034,0.00023643,2]
[364943117,1749329437237,-1260.646034,0.00023643,2]
[364943118,1749329437248,-189.649294,0.00023643,7]
[364943119,1749329437259,-189.649294,0.00023643,7]
[364943120,1749329437269,-151.0,0.00023643,7]
[364943121,1749329437280,-151.0,0.00023643,7]
[364943122,1749329437290,-186.231388,0.00023643,7]
[364943123,1749329437303,-186.231388,0.00023643,7]
[364943124,1749329437314,-151.0,0.00023643,7]
[364943125,1749329437326,-203.193541,0.00023643,7]
[364943126,1749329437337,-203.193541,0.00023643,7]
[364943127,1749329437348,-151.0,0.00023643,7]
[364943128,1749329437360,-872.1417752,0.00023659,9]
[364943129,1749329437371,-500.0,0.0002368,2]
[364943130,1749329437382,-500.0,0.0002368,2]
[364943131,1749329437394,-166.894836,0.0002368,7]
[364943132,1749329437406,-166.894836,0.0002368,7]
[364943133,1749329437420,-408.265113,0.0002368,7]
[364943134,1749329437433,-408.265113,0.0002368,7]
[364943135,1749329437444,-151.0,0.0002368,7]
[364943136,1749329437456,-151.0,0.0002368,7]
[364943137,1749329437468,-151.0,0.0002368,7]
[364943138,1749329437480,-11805.43722932,0.000237,2]
[364943139,1749329437492,-524.42158089,0.000237,2]
[364943140,1749329437504,-200.0,0.000237,3]
[364943141,1749329437516,-151.0,0.000237,7]
[364943142,1749329437527,-282.6,0.000237,7]
[364943143,1749329437539,-282.6,0.000237,7]
[364943144,1749329437551,-531.686242,0.000237,7]
[364943145,1749329437562,-206.528425,0.000237,7]
[364943146,1749329437573,-206.528425,0.000237,7]
[364943147,1749329437585,-221.709138,0.000237,7]
[364943148,1749329437602,-221.709138,0.000237,7]
[364943149,1749329437614,-151.0,0.000237,7]
[364943150,1749329437625,-151.0,0.000237,7]
[364943151,1749329437637,-151.0,0.000237,7]
[364943152,1749329437649,-151.0,0.000237,7]
[364943153,1749329437661,-500.0,0.00023726,2]
[364943154,1749329437672,-151.0,0.00023727,7]
[364943155,1749329437684,-151.0,0.00023743,7]
[364943156,1749329437696,-500.0,0.00023773,2]
[364943157,1749329437707,-328.55184798,0.00023773,2]
[364943158,1749329437724,-500.0,0.00023773,2]
[364943159,1749329437736,-503.13665459,0.00023773,2]
[364943160,1749329437747,-500.0,0.00023773,2]
[364943161,1749329437760,-500.0,0.00023773,2]
[364943162,1749329437771,-500.0,0.00023773,2]
[364943163,1749329437783,-600.0,0.00023773,2]
[364943164,1749329437794,-163.5396541,0.00023773,2]
[364943165,1749329437806,-500.0,0.00023773,2]
[364943166,1749329437817,-500.0,0.00023773,2]
[364943167,1749329437829,-216.9712955,0.00023781,2]
[364943168,1749329437841,-872.1417752,0.00023797,9]
[364943169,1749329437853,-13738.4860791,0.000238,2]
[364943170,1749329437864,-68247.99523478,0.000238,3]
[364943221,1749329439271,-500.0,0.00019725,2]
[364943222,1749329439283,-440.0,0.00019725,2]
[364943223,1749329439293,-804.71651119,0.00019987,2]
[364943224,1749329439304,-440.0,0.00019999,2]
[364943225,1749329439315,-440.0,0.00020273,2]
[364943226,1749329439327,-525.14,0.00020547,2]
[364943227,1749329439337,-151.0,0.00022445,7]
[364943228,1749329439348,-151.0,0.00023267,7]
[364943229,1749329439360,-151.0,0.000237,7]
[364943230,1749329439370,-7627.71695016,0.000238,3]
[364943266,1749329440678,-3287.51920523,0.000238,3]
[364943497,1749329443552,-151.0,0.00022445,7]
[364943499,1749329443563,-151.0,0.00023267,7]
[364943501,1749329443574,-4.28619094,0.000237,7]
[364943570,1749329446556,-440.0,0.00019451,2]
[364943571,1749329446566,-171.08896332,0.00019725,2]
[364943572,1749329446576,-824.3149566,0.00020544,2]
[364943574,1749329693563,166.313349,0.00013699,2]
[364943577,1749330430097,-152.13045106,0.000186,2]
[364943578,1749330430119,-300.0,0.0001945,2]
[364943579,1749330430141,-473.15511575,0.0001945,2]
[364943580,1749330439130,-330.74547762,0.0001945,2]
[364943582,1749330549092,-529.66243375,0.000189,2]
[364943583,1749330549127,-160.09940663,0.0001945,2]
[364943584,1749330549171,-300.0,0.0001945,2]
[364943585,1749330549193,-300.0,0.0001945,2]
[364943586,1749330549213,-440.0,0.00019451,2]
[364943587,1749330549234,-440.0,0.00019451,2]
[364943588,1749330549256,-440.0,0.00019451,2]
[364943589,1749330549276,-440.0,0.00019451,2]
[364943590,1749330549297,-440.0,0.00019451,2]
[364943591,1749330552146,-152.58971726,0.00019623,2]
[364943592,1749330552171,-459.44791126,0.00019722,2]
[364943593,1749330552192,-244.21203815,0.00019722,2]
[364943594,1749330571126,-255.78796185,0.00019722,2]
[364943595,1749330571150,-463.56064296,0.00019722,2]
[364943596,1749330571172,-96.73359417,0.00019722,2]
[364943597,1749330583603,119.5303709,0.0001915,2]
[364943649,1749330632819,-254.547694,0.00019097,2]
[364943651,1749330632831,-16836.242027,0.0001915,2]
[364943653,1749330632841,-440.0,0.00019722,2]
[364943655,1749330632851,-192.77119048,0.00019722,2]
[364943657,1749330632860,-430.0,0.00019722,2]
[364943659,1749330632870,-430.0,0.00019722,2]
[364943661,1749330632880,-430.0,0.00019722,2]
[364943664,1749330632889,-440.0,0.00019722,2]
[364943667,1749330632899,-440.0,0.00019722,2]
[364943669,1749330632908,-440.0,0.00019722,2]
[364943671,1749330632918,-440.0,0.00019722,2]
[364943673,1749330632928,-440.0,0.00019722,2]
[364943674,1749330632938,-440.0,0.00019722,2]
[364943676,1749330632947,-440.0,0.00019722,2]
[364943678,1749330632957,-440.0,0.00019722,2]
[364943680,1749330632966,-536.9,0.00019722,2]
[364943682,1749330632976,-500.0,0.00019722,2]
[364943684,1749330632985,-440.0,0.00019722,2]
[364943686,1749330632995,-440.0,0.00019722,2]
[364943688,1749330633005,-440.0,0.00019722,2]
[364943690,1749330633015,-414.81838807,0.00019722,2]
[364943692,1749330633025,-440.0,0.00019722,2]
[364943694,1749330633035,-440.0,0.00019722,2]
[364943696,1749330633045,-632.93,0.00019722,2]
[364943698,1749330633055,-440.0,0.00019722,2]
[364943700,1749330633064,-430.0,0.00019722,2]
[364943701,1749330633075,-343.26640583,0.00019722,2]
[364943702,1749330633085,-430.0,0.00019722,2]
[364943704,1749330633096,-462.51408139,0.00019722,2]
[364943706,1749330633106,-440.0,0.00019722,2]
[364943708,1749330633116,-440.0,0.00019722,2]
[364943710,1749330633126,-440.0,0.00019722,2]
[364943712,1749330633136,-440.0,0.00019722,2]
[364943714,1749330633146,-370.0,0.00019722,2]
[364943716,1749330633156,-289.79,0.00019722,2]
[364943718,1749330633166,-440.0,0.00019723,2]
[364943720,1749330633175,-121.54796501,0.00019723,2]
[364943975,1749330643753,-318.45203499,0.00019723,2]
[364943976,1749330643763,-430.0,0.00019723,2]
[364943977,1749330643773,-440.0,0.00019723,2]
[364943978,1749330643782,-440.0,0.00019723,2]
[364943979,1749330643796,-440.0,0.00019723,2]
[364943980,1749330643806,-440.0,0.00019723,2]
[364943981,1749330643816,-440.0,0.00019723,2]
[364943982,1749330643827,-440.0,0.00019723,2]
[364943983,1749330643837,-440.0,0.00019723,2]
[364943984,1749330643847,-430.0,0.00019723,2]
[364943985,1749330643856,-440.0,0.00019723,2]
[364943986,1749330643867,-195.83381847,0.00019723,2]
[364943987,1749330643877,-440.0,0.00019723,2]
[364943988,1749330643887,-440.0,0.00019723,2]
[364943989,1749330643897,-440.0,0.00019723,2]
[364943990,1749330643906,-430.0,0.00019723,2]
[364943991,1749330643916,-440.0,0.00019723,2]
[364943992,1749330643926,-440.0,0.00019723,2]
[364943993,1749330643935,-430.0,0.00019723,2]
[364943994,1749330643945,-440.0,0.00019723,2]
[364943995,1749330643955,-400.0,0.00019723,2]
[364943996,1749330643965,-476.38897664,0.00019723,2]
[364943997,1749330643974,-430.0,0.00019723,2]
[364943998,1749330643984,-430.0,0.00019723,2]
[364943999,1749330643994,-430.0,0.00019723,2]
[364944000,1749330644004,-430.0,0.00019723,2]
[364944001,1749330644014,-430.0,0.00019723,2]
[364944002,1749330644023,-430.0,0.00019723,2]
[364944003,1749330644033,-430.0,0.00019723,2]
[364944004,1749330644042,-430.0,0.00019723,2]
[364944005,1749330644052,-440.0,0.00019723,2]
[364944006,1749330644061,-440.0,0.00019723,2]
[364944007,1749330644071,-440.0,0.00019723,2]
[364944008,1749330644080,-440.0,0.00019723,2]
[364944009,1749330644090,-440.0,0.00019723,2]
[364944010,1749330644100,-350.0,0.00019723,2]
[364944011,1749330644109,-396.60074128,0.00019723,2]
[364944014,1749330668086,166.313349,0.00013699,2]
[364944021,1749331649109,-405.853479,0.00018557,2]
[364944022,1749331649132,-2513.4493467,0.00018721,2]
[364944023,1749331649154,-353.10828916,0.000189,2]
[364944024,1749331649176,-333.0,0.00018999,2]
[364944025,1749331649200,-300.0,0.00018999,2]
[364944026,1749331649226,-7992.36129644,0.00019,2]
[364944027,1749331649248,-152.58971722,0.00019622,2]
[364944028,1749331649274,-440.0,0.0001972,2]
[364944029,1749331649297,-440.0,0.0001972,2]
[364944030,1749331649320,-256.17022049,0.0001972,2]
[364944031,1749331649342,-525.76247446,0.00019721,2]
[364944032,1749331649364,-440.0,0.00019721,2]
[364944033,1749331649385,-420.0,0.00019721,2]
[364944034,1749331649408,-306.97446327,0.00019721,2]
[364944035,1749331649433,-287.11675586,0.00019721,2]
[364944046,1749331756186,-7361.4548714,0.00018859,2]
[364944047,1749331756209,-235.40552611,0.000189,2]
[364944048,1749331756231,-164.641114,0.00019178,2]
[364944049,1749331756254,-292.21376877,0.0001972,2]
[364944050,1749331773132,-147.78623123,0.0001972,2]
[364944051,1749331773159,-440.0,0.0001972,2]
[364944052,1749331773181,-274.61376877,0.0001972,2]
[364944094,1749331831875,-165.38623123,0.0001972,2]
[364944099,1749331831886,-500.0,0.0001972,2]
[364944100,1749331831896,-214.65336325,0.0001972,2]
[364944103,1749331831906,-440.0,0.0001972,2]
[364944105,1749331831917,-440.0,0.0001972,2]
[364944108,1749331831928,-440.0,0.0001972,2]
[364944109,1749331831938,-198.26725352,0.0001972,2]
[364944232,1749331837668,-438.92274648,0.0001972,2]
[364944235,1749331837680,-440.0,0.0001972,2]
[364944237,1749331837693,-440.0,0.0001972,2]
[364944240,1749331837711,-430.0,0.0001972,2]
[364944242,1749331837722,-440.0,0.0001972,2]
[364944244,1749331837734,-440.0,0.0001972,2]
[364944247,1749331837747,-6055.8156132,0.0001972,2]
[364944249,1749331837763,-105.63276247,0.0001972,2]
[364944252,1749331837776,-440.0,0.0001972,2]
[364944254,1749331837789,-16.81984654,0.00019721,2]
[364944257,1749331837803,-136.0633976,0.00019721,2]
[364944259,1749331837815,-544.74875674,0.00019721,2]
[364944261,1749331837827,-430.0,0.00019721,2]
[364944264,1749331837843,-430.0,0.00019721,2]
[364944266,1749331837854,-60.25353639,0.00019721,2]
[364944271,1749331837870,-379.74646361,0.00019721,2]
[364944274,1749331837882,-440.0,0.00019721,2]
[364944276,1749331837893,-281.63328739,0.00019721,2]
[364944279,1749331837915,-148.36671261,0.00019721,2]
[364944281,1749331837926,-440.0,0.00019721,2]
[364944283,1749331837936,-440.0,0.00019721,2]
[364944286,1749331837946,-435.43783457,0.00019721,2]
[364944288,1749331837956,-504.49169705,0.00019721,2]
[364944290,1749331837967,-440.0,0.00019721,2]
[364944292,1749331837980,-336.21154462,0.00019721,2]
[364944295,1749331837992,-440.0,0.00019721,2]
[364944297,1749331838005,-440.0,0.00019721,2]
[364944299,1749331838017,-430.0,0.00019721,2]
[364944301,1749331838029,-420.0,0.00019721,2]
[364944303,1749331838041,-440.0,0.00019721,2]
[364944306,1749331838053,-440.0,0.00019721,2]
[364944308,1749331838065,-440.0,0.00019721,2]
[364944310,1749331838076,-440.0,0.00019721,2]
[364944312,1749331838089,-440.0,0.00019721,2]
[364944315,1749331838102,-440.0,0.00019721,2]
[364944317,1749331838115,-440.0,0.00019721,2]
[364944319,1749331838128,-440.0,0.00019721,2]
[364944322,1749331838140,-440.0,0.00019721,2]
[364944324,1749331838152,-430.0,0.00019722,2]
[364944326,1749331838165,-400.0,0.00019722,2]
[364944328,1749331838176,-430.0,0.00019722,2]
[364944330,1749331838186,-430.0,0.00019722,2]
[364944332,1749331838197,-365.49221115,0.00019722,2]
[364944335,1749331838210,-64.50778885,0.00019722,2]
[364944337,1749331838220,-302.94783816,0.00019722,2]
[364944339,1749331838230,-440.0,0.00019722,2]
[364944341,1749331838241,-430.0,0.00019722,2]
[364944343,1749331838253,-430.0,0.00019722,2]
[364944346,1749331838264,-440.0,0.00019722,2]
[364944348,1749331838277,-440.0,0.00019722,2]
[364944350,1749331838289,-203.2807328,0.00019722,2]
[364944354,1749331838313,-236.7192672,0.00019722,2]
[364944356,1749331838324,-440.0,0.00019722,2]
[364944358,1749331838334,-152.58971722,0.00019895,2]
[364944360,1749331838344,-500.0,0.00019994,2]
[364944362,1749331838355,-440.0,0.00019994,2]
[364944365,1749331838366,-637.19,0.00019994,2]
[364944367,1749331838379,-440.0,0.00019994,2]
[364944369,1749331838390,-440.0,0.00019995,2]
[364944371,1749331838400,-440.0,0.00019995,2]
[364944373,1749331838415,-440.0,0.00019995,2]
[364944376,1749331838426,-4135.45287995,0.0002,2]
[364944378,1749331838440,-9774.54712005,0.0002,2]
[364944380,1749331838452,-12.83240926,0.00020268,2]
[364944542,1749331840035,-427.16759074,0.00020268,2]
[364944544,1749331840046,-637.19,0.00020268,2]
[364944546,1749331840057,-440.0,0.00020268,2]
[364944548,1749331840068,-440.0,0.00020269,2]
[364944550,1749331840078,-285.45238625,0.00020354,2]
[364944553,1749331840091,-500.0,0.00020354,2]
[364944555,1749331840103,-500.0,0.00020354,2]
[364944557,1749331840113,-500.0,0.00020354,2]
[364944559,1749331840124,-556.25329987,0.00020354,2]
[364944562,1749331840135,-500.0,0.00020354,2]
[364944565,1749331840147,-500.0,0.00020354,2]
[364944567,1749331840158,-4609.26946649,0.00020355,2]
[364944749,1749331842809,-17934.10906831,0.00020355,2]
[364944763,1749331845962,-1528.14,0.00020355,2]
[364944764,1749331845977,-165154.50918672,0.00020355,2]
[364944765,1749331845990,-500.0,0.00020515,2]
[364944766,1749331846001,-160.0,0.0002052,2]
[364944767,1749331846012,-11851.94353573,0.0002052,2]
[364944768,1749331846023,-213.01382694,0.0002052,2]
[364944769,1749331846034,-315.08178181,0.0002052,2]